bitfinex/quotes_ETHUSD_20241004
["timestamp","ask_amount","ask_price","bid_price","bid_amount"]
[1728005215700,4.20701,2377.0,2376.1,0.4233]
[1728005215899,9.5833383,2377.2,2376.1,0.4233]
[1728005216055,4.2072,2376.9,2375.8,5.4373]
[1728005216401,4.2072,2376.9,2375.8,1.2282]
[1728005216556,5.16516383,2377.1,2375.8,5.43726]
[1728005216911,4.20736,2376.8,2375.8,1.2282]
[1728005217195,4.20716,2376.9,2375.8,0.8049]
[1728005217401,4.207,2377.0,2375.8,1.2282]
[1728005217601,4.207,2377.0,2375.9,4.20889]
[1728005217758,0.4207,2376.9,2375.8,5.43723]
[1728005217962,4.62788,2376.9,2375.8,5.43723]
[1728005218191,4.20718,2376.9,2375.8,5.43728]
[1728005218358,4.20718,2376.9,2375.9,4.2089]
[1728005218754,0.833,2377.5,2375.8,1.2282]
[1728005218999,4.2073,2376.9,2375.8,5.43721]
[1728005219195,0.841428,2376.8,2375.8,5.43721]
[1728005219415,0.841428,2376.8,2375.8,1.2282]
[1728005219416,5.048768,2376.8,2375.8,1.2282]
[1728005219561,4.20734,2376.8,2375.8,5.43725]
[1728005219761,4.20734,2376.8,2375.8,1.2282]
[1728005219998,4.20767,2376.7,2375.8,1.2282]
[1728005220195,4.20734,2376.8,2375.8,1.2282]
[1728005220407,4.20773,2376.6,2375.8,1.2282]
[1728005220602,0.420734,2376.7,2375.8,1.2282]
[1728005220827,4.20705,2377.0,2375.8,1.2282]
[1728005221105,4.20716,2376.9,2375.9,4.20879]
[1728005221460,4.20685,2377.1,2375.9,4.20879]
[1728005221803,4.20685,2377.1,2375.8,1.2282]
[1728005221804,4.20702,2377.0,2376.1,0.4233]
[1728005221961,4.627535,2377.1,2376.1,4.20844]
[1728005222302,4.2071,2377.0,2376.0,4.752419]
[1728005222520,4.627535,2377.1,2376.1,4.20854]
[1728005222664,4.20647,2377.3,2376.4,4.20799]
[1728005223004,4.20416,2378.6,2377.4,0.4233]
[1728005223005,0.833,2378.6,2377.4,0.4233]
[1728005223224,0.833,2378.6,2377.8,0.4233]
[1728005223444,5.540877,2378.6,2377.8,0.4233]
[1728005223595,1.336707,2378.6,2377.8,0.4233]
[1728005224123,4.20433,2378.5,2377.9,0.4233]
[1728005224327,4.20415,2378.6,2377.9,0.4233]
[1728005224483,4.20482,2378.3,2377.9,0.4233]
[1728005224683,4.20482,2378.3,2377.3,5.0112]
[1728005224684,4.20503,2378.1,2378.0,0.4233]
[1728005225094,4.20503,2378.1,2377.5,0.4233]
[1728005225818,4.20476,2378.3,2377.5,0.4233]
[1728005226027,4.20504,2378.1,2377.5,0.4233]
[1728005226236,4.20504,2378.1,2377.3,5.01132]
[1728005226237,4.20523,2378.0,2377.6,0.4233]
[1728005226545,4.2054,2377.9,2377.6,0.4233]
[1728005226695,4.20574,2377.7,2377.6,0.4233]
[1728005227032,4.20615,2377.5,2376.9,0.4233]
[1728005227330,4.20473,2378.3,2377.3,0.4233]
[1728005227535,4.20473,2378.3,2377.5,0.4233]
[1728005228096,4.20503,2378.1,2377.5,0.4233]
[1728005228405,4.20345,2379.0,2377.7,0.4233]
[1728005228406,4.20433,2378.5,2377.7,0.4233]
[1728005228619,4.20452,2378.4,2377.7,0.4233]
[1728005229301,4.20418,2378.6,2377.7,4.62892]
[1728005229498,4.20418,2378.6,2377.9,0.4233]
[1728005229733,4.20321,2379.2,2378.6,0.4233]
[1728005229945,4.20321,2379.2,2378.0,0.8047]
[1728005229946,1.04508274,2379.6,2379.0,0.4233]
[1728005230096,4.20311,2379.2,2379.0,0.4233]
[1728005230300,5.24761274,2379.6,2379.0,0.4233]
[1728005230595,4.20285,2379.4,2379.0,0.4233]
[1728005231053,5.24749274,2379.6,2378.8,0.4233]
[1728005231054,4.20325,2379.2,2378.8,0.4233]
[1728005231248,4.20362,2378.9,2378.8,0.4233]
[1728005231988,4.20362,2378.9,2378.2,4.628]
[1728005232197,4.20341,2379.1,2378.4,0.4233]
[1728005232348,4.20339,2379.1,2378.4,0.4233]
[1728005232549,4.20339,2379.1,2378.6,0.4233]
[1728005233055,4.20348,2379.0,2378.6,0.4233]
[1728005233249,0.52474927,2379.5,2378.6,1.228]
[1728005233448,0.52474927,2379.5,2378.7,0.4233]
[1728005233449,4.20258,2379.5,2378.7,0.4233]
[1728005233655,4.2038,2378.8,2378.7,0.4233]
[1728005233886,4.20361,2379.0,2378.7,0.4233]
[1728005234049,4.20314,2379.2,2378.7,0.4233]
[1728005234249,4.20314,2379.2,2378.7,0.4183]
[1728005234450,4.20332,2379.1,2378.7,0.4183]
[1728005234705,4.20357,2379.0,2378.7,0.4133]
[1728005234909,4.2038,2378.8,2378.7,0.4133]
[1728005235477,4.20488,2378.2,2377.8,0.4233]
[1728005235694,4.20461,2378.4,2377.8,0.4233]
[1728005235868,4.20461,2378.4,2377.7,0.8047]
[1728005235869,4.2042,2378.6,2378.0,0.4233]
[1728005236220,4.20381,2378.8,2378.2,0.4233]
[1728005236384,4.2031,2379.2,2378.2,0.4233]
[1728005236587,0.7799,2379.3,2378.2,0.4233]
[1728005236588,4.20435,2378.5,2378.2,0.4233]
[1728005237013,4.20468,2378.3,2378.2,0.4233]
[1728005237221,4.20468,2378.3,2377.8,0.4233]
[1728005237780,8.40952,2378.3,2377.8,0.4233]
[1728005238004,4.20433,2378.5,2377.8,0.4233]
[1728005238313,4.20489,2378.2,2377.8,0.4233]
[1728005238704,4.20505,2378.1,2377.8,0.4233]
[1728005238884,4.20352,2379.0,2377.8,0.4233]
[1728005238885,4.20457,2378.4,2377.8,0.4233]
[1728005239085,4.20457,2378.4,2377.8,0.50740266]
[1728005239289,4.20457,2378.4,2377.8,0.4233]
[1728005239510,4.2049,2378.2,2377.8,0.4233]
[1728005239721,4.20427,2378.6,2378.0,0.4233]
[1728005240021,0.7799,2378.9,2378.0,0.50739628]
[1728005240186,4.20352,2379.0,2378.2,0.4233]
[1728005240390,4.2023,2379.7,2378.6,0.4233]
[1728005240391,4.20321,2379.2,2378.6,0.4233]
[1728005240686,4.20282,2379.4,2378.6,0.4233]
[1728005240687,4.20288,2379.4,2378.9,0.4233]
[1728005241001,4.20273,2379.5,2379.0,0.08406439]
[1728005241372,4.20227,2379.7,2379.1,0.4233]
[1728005241985,5.24753274,2379.6,2379.1,0.4233]
[1728005242371,1.04508274,2379.6,2379.1,0.4233]
[1728005243617,0.99893661,2379.6,2379.1,0.4233]
[1728005243818,5.20132661,2379.6,2379.1,0.4233]
[1728005244020,0.99893661,2379.6,2379.1,0.4233]
[1728005244315,4.20256,2379.5,2379.2,0.4233]
[1728005244672,4.20276,2379.4,2379.2,0.4233]
[1728005244920,4.20256,2379.5,2379.2,0.4233]
[1728005245085,4.20256,2379.5,2378.9,0.4233]
[1728005245286,4.20292,2379.3,2378.9,0.4233]
[1728005246074,4.20292,2379.3,2378.8,0.4233]
[1728005246616,4.20256,2379.5,2378.8,4.62696]
[1728005247203,8.40526,2379.5,2378.8,4.62696]
[1728005247415,4.20256,2379.5,2378.8,5.510065]
[1728005248222,4.20256,2379.5,2379.0,0.4233]
[1728005248518,8.40524,2379.5,2379.0,0.4233]
[1728005248721,4.20256,2379.5,2379.0,0.4233]
[1728005249740,4.20256,2379.5,2379.0,4.62674]
[1728005249942,8.40524,2379.5,2379.0,0.4233]
[1728005250346,4.20297,2379.3,2379.0,0.4233]
[1728005250555,4.20314,2379.2,2379.0,0.4233]
[1728005251457,4.20327,2379.1,2379.0,0.4233]
[1728005252624,4.20327,2379.1,2378.3,3.0]
[1728005252625,4.20367,2378.9,2378.7,0.4233]
[1728005252826,4.2038,2378.8,2378.7,0.4233]
[1728005253513,4.20367,2378.9,2378.3,0.4233]
[1728005253857,4.20367,2378.9,2378.3,4.62795]
[1728005254028,4.20367,2378.9,2378.5,0.4233]
[1728005254212,4.20413,2378.7,2378.5,0.4233]
[1728005254417,4.20368,2378.9,2378.5,0.4233]
[1728005254612,4.204,2378.7,2378.5,0.4233]
[1728005255031,4.204,2378.7,2378.3,0.4233]
[1728005255232,4.20427,2378.6,2378.3,0.4233]
[1728005255560,4.20398,2378.7,2378.3,0.4233]
[1728005255854,4.20398,2378.7,2378.3,0.50738286]
[1728005256357,0.44007471,2379.1,2378.9,8.42871]
[1728005256562,0.44007471,2379.1,2378.9,4.2251]
[1728005256855,4.20275,2379.4,2378.9,1.2251]
[1728005256856,4.20314,2379.2,2378.9,1.2251]
[1728005257039,4.20344,2379.0,2378.9,0.4233]
[1728005257915,4.20328,2379.1,2378.9,0.4233]
[1728005258224,4.20328,2379.1,2378.6,0.8018]
[1728005258225,4.20409,2378.7,2378.5,0.4233]
[1728005258556,4.20415,2378.6,2378.5,0.4233]
[1728005259455,4.20409,2378.7,2378.5,0.4233]
[1728005259660,4.20415,2378.6,2378.5,0.4233]
[1728005259947,4.20415,2378.6,2378.0,0.82830543]
[1728005259948,4.2049,2378.2,2378.0,0.82830543]
[1728005260159,4.2049,2378.2,2378.0,0.4233]
[1728005260362,4.2049,2378.2,2378.1,0.4233]
[1728005260573,4.20525,2378.0,2377.7,0.8018]
[1728005260857,4.20534,2378.0,2377.8,0.4233]
[1728005261269,4.20426,2378.6,2378.1,0.4233]
[1728005261468,4.20324,2379.2,2378.4,0.4233]
[1728005261756,4.20346,2379.0,2378.4,5.42949]
[1728005261914,4.20346,2379.0,2378.5,0.08407948]
[1728005262115,4.20373,2378.9,2378.4,1.2251]
[1728005262332,4.20346,2379.0,2378.4,5.42956]
[1728005262539,4.20346,2379.0,2378.4,1.2251]
[1728005262540,4.20363,2378.9,2378.4,1.2251]
[1728005262736,4.20323,2379.2,2378.7,0.4233]
[1728005263067,8.40648,2379.2,2378.7,0.4233]
[1728005263212,0.7901,2379.4,2378.7,0.50737529]
[1728005263213,8.40568,2379.4,2378.7,0.50737529]
[1728005263414,4.20296,2379.3,2378.7,4.62726]
[1728005263614,4.20282,2379.4,2378.7,5.089846]
[1728005264049,5.20139661,2379.6,2379.1,0.4233]
[1728005264249,0.99893661,2379.6,2379.1,0.4233]
[1728005264450,0.99893661,2379.6,2378.9,4.2035]
[1728005264451,0.99893661,2379.6,2379.4,1.2251]
[1728005264755,0.99893661,2379.6,2379.5,0.4233]
[1728005265433,0.99893661,2379.6,2378.7,0.462726]
[1728005265434,4.20321,2379.2,2378.7,0.462726]
[1728005265631,6.51160127,2379.6,2378.6,5.00583]
[1728005265632,4.20295,2379.3,2378.6,5.00583]
[1728005265832,4.20314,2379.2,2378.6,5.00583]
[1728005266161,4.20355,2379.0,2378.3,4.85165678]
[1728005266367,1.78903661,2379.6,2378.7,0.4233]
[1728005266667,4.20294,2379.3,2378.7,0.4233]
[1728005267171,4.20346,2379.0,2378.7,0.4233]
[1728005267467,4.20346,2379.0,2378.8,0.4233]
[1728005267468,4.20372,2378.9,2378.8,0.4233]
[1728005267964,4.72415079,2379.0,2378.8,0.4233]
[1728005267965,4.2597984,2379.0,2378.8,0.4233]
[1728005268167,0.0563584,2379.0,2378.8,0.4233]
[1728005268519,0.0563584,2379.0,2378.9,0.4233]
[1728005269345,0.0563584,2379.0,2378.4,0.4233]
[1728005269555,4.2599284,2379.0,2378.4,0.4233]
[1728005269867,4.20415,2378.6,2378.4,0.4233]
[1728005270071,4.20396,2378.8,2378.5,0.4233]
[1728005270374,1.27715763,2379.0,2378.5,0.4233]
[1728005270375,0.0563584,2379.0,2378.5,0.4233]
[1728005270552,0.0563584,2379.0,2378.5,4.62749]
[1728005270752,0.0563584,2379.0,2378.5,5.44894616]
[1728005271060,4.2598084,2379.0,2378.5,1.24475616]
[1728005271267,4.2598084,2379.0,2378.5,0.4233]
[1728005271563,0.0563584,2379.0,2378.9,0.4233]
[1728005272477,4.2597984,2379.0,2378.5,0.4233]
[1728005272621,4.2597984,2379.0,2378.9,5.38192]
[1728005272622,0.0563584,2379.0,2378.9,5.38192]
[1728005272822,0.0563584,2379.0,2378.9,6.42455393]
[1728005273428,0.0563584,2379.0,2378.9,6.340491]
[1728005273823,0.0563584,2379.0,2378.9,1.1783]
[1728005274077,0.0563584,2379.0,2378.9,4.62692]
[1728005274367,0.0563584,2379.0,2378.9,0.4233]
[1728005274529,0.0563584,2379.0,2378.9,4.62692]
[1728005274721,0.0563584,2379.0,2378.9,0.4233]
[1728005275561,0.0563584,2379.0,2378.9,4.62692]
[1728005275767,0.0563584,2379.0,2378.9,0.4233]
[1728005276019,0.99893661,2379.6,2379.2,0.755]
[1728005276177,0.99893661,2379.6,2379.5,7.62586]
[1728005276490,0.99893661,2379.6,2379.5,10.14321715]
[1728005276646,0.99893661,2379.6,2379.5,44.6375458]
[1728005276647,0.81294698,2379.6,2379.5,44.6375458]
[1728005276826,0.0008,2379.9,2379.8,8.17023]
[1728005277028,0.0008,2379.9,2379.8,10.06724518]
[1728005277225,0.0008,2379.9,2379.8,12.04700561]
[1728005277469,0.0008,2379.9,2379.8,12.50644564]
[1728005277669,0.1175763,2380.9,2379.9,8.17515]
[1728005277869,0.1175763,2380.9,2379.9,11.87692879]
[1728005278073,0.1175763,2380.9,2379.9,14.23224305]
[1728005278237,0.1175763,2380.9,2379.9,48.37220584]
[1728005278569,0.1175763,2380.9,2379.9,48.37215345]
[1728005278778,0.1175763,2380.9,2380.8,4.62356]
[1728005279443,0.1175763,2380.9,2379.9,38.73150903]
[1728005279671,0.1175763,2380.9,2379.5,4.2024]
[1728005279871,0.1175763,2380.9,2379.4,0.85313343]
[1728005279872,0.7508,2380.5,2379.4,4.66801]
[1728005280073,0.7508,2380.5,2379.9,4.2018]
[1728005280258,0.1175763,2380.9,2380.3,4.20099]
[1728005280259,0.7508,2380.8,2380.3,4.20099]
[1728005280457,0.7508,2380.8,2380.5,0.4233]
[1728005280768,0.7508,2380.8,2380.2,4.20131]
[1728005280998,0.7508,2380.8,2379.4,0.4656]
[1728005281177,0.7508,2380.4,2379.4,0.4656]
[1728005281346,0.7508,2380.4,2379.8,4.202]
[1728005281686,4.20029,2380.8,2379.9,4.62501]
[1728005281901,4.20029,2380.8,2380.2,4.6246]
[1728005281902,0.7508,2380.8,2380.2,4.6246]
[1728005282215,0.7508,2380.8,2380.2,0.4233]
[1728005282216,4.95108,2380.8,2380.2,0.4233]
[1728005282887,0.7508,2380.8,2380.1,4.62476]
[1728005283470,0.7508,2380.8,2380.4,0.4233]
[1728005283659,0.7508,2380.8,2380.6,4.6239]
[1728005283935,0.1175763,2380.9,2380.6,4.6239]
[1728005284192,0.1175763,2380.9,2380.8,4.20026]
[1728005284379,0.1175763,2380.9,2380.8,7.66586]
[1728005284557,0.1175763,2380.9,2380.8,9.70425112]
[1728005285659,0.1175763,2380.9,2380.8,9.69681073]
[1728005286678,4.3136763,2383.2,2382.2,4.19779]
[1728005286891,4.3136763,2383.2,2382.1,4.62126]
[1728005286892,4.19691,2382.8,2382.1,4.62126]
[1728005287099,4.19695,2382.7,2382.1,0.4233]
[1728005287312,0.1175763,2383.2,2381.3,4.19924]
[1728005287313,4.19828,2382.0,2381.3,4.19924]
[1728005287515,4.19921,2381.4,2380.5,0.5]
[1728005287697,4.19921,2381.4,2380.6,54.70049]
[1728005287900,4.19921,2381.4,2380.7,50.5]
[1728005288194,4.19921,2381.4,2380.7,0.4233]
[1728005288393,4.19809,2382.1,2380.5,0.5]
[1728005288394,4.19809,2382.1,2380.8,50.9233]
[1728005288601,3.0,2382.6,2380.1,0.882659]
[1728005288602,4.20031,2380.8,2380.1,0.882659]
[1728005288822,4.20031,2380.8,2379.8,4.20198]
[1728005288823,4.20062,2380.6,2379.8,4.20198]
[1728005289106,4.19959,2381.2,2380.3,4.20113]
[1728005289316,4.19959,2381.2,2380.4,51.00731347]
[1728005289612,0.55,2382.1,2380.4,0.7851]
[1728005289912,0.8242,2381.1,2380.4,4.20079]
[1728005290116,0.8242,2381.1,2380.3,4.20114]
[1728005290317,0.8242,2381.1,2380.6,0.4233]
[1728005290465,4.19971,2381.2,2380.8,0.4233]
[1728005290777,0.8242,2381.4,2380.9,50.5]
[1728005291029,4.19991,2381.0,2380.9,50.5]
[1728005291705,4.19973,2381.2,2380.9,50.5]
[1728005291706,4.19968,2381.2,2380.9,50.5]
[1728005292117,4.19991,2381.0,2380.9,50.5]
[1728005292284,5.02411,2381.0,2380.9,50.5]
[1728005292481,5.02411,2381.0,2379.7,0.7851]
[1728005292482,4.20135,2380.2,2379.8,50.5]
[1728005292899,4.702068,2381.2,2379.5,0.466851]
[1728005292900,4.20182,2380.0,2379.5,0.466851]
[1728005293123,4.702068,2381.2,2379.5,0.466851]
[1728005293124,4.20134,2380.2,2379.5,0.466851]
[1728005293272,4.20134,2380.2,2379.7,0.4233]
[1728005293472,8.40213,2380.4,2379.7,4.62535]
[1728005293671,0.8242,2380.5,2379.7,0.4233]
[1728005293973,4.20108,2380.4,2379.7,4.62548]
[1728005294184,4.20122,2380.3,2379.8,0.4233]
[1728005294613,4.20122,2380.3,2379.4,4.98783]
[1728005294614,4.20199,2379.9,2379.5,0.4233]
[1728005294769,4.2011,2380.4,2379.8,0.4233]
[1728005294969,4.20044,2380.7,2380.1,4.20144]
[1728005295172,4.20069,2380.6,2380.1,0.4233]
[1728005295606,4.2008,2380.5,2380.1,0.4233]
[1728005295913,4.20069,2380.6,2380.1,0.4233]
[1728005296112,4.20109,2380.4,2379.9,0.4233]
[1728005296418,4.20079,2380.5,2380.3,0.4233]
[1728005296722,4.20108,2380.4,2379.9,0.7851]
[1728005296901,4.19994,2381.0,2379.9,0.7851]
[1728005297102,4.20053,2380.7,2379.9,4.9869]
[1728005297395,4.19945,2381.3,2380.3,4.201]
[1728005297596,0.8242,2381.4,2380.7,4.20043]
[1728005297799,4.19949,2381.3,2380.2,0.7851]
[1728005298006,4.19949,2381.3,2380.6,4.2005]
[1728005298182,0.8242,2381.4,2380.7,4.20038]
[1728005298546,4.20004,2381.0,2380.4,4.62423]
[1728005298676,0.8242,2381.4,2379.8,1.26355352]
[1728005298876,4.20169,2380.0,2379.5,0.7926]
[1728005299372,0.8168,2380.8,2379.5,0.7926]
[1728005299373,4.20166,2380.1,2379.5,0.7926]
[1728005299574,4.20123,2380.3,2379.5,1.2159]
[1728005299787,4.20123,2380.3,2379.6,0.08403919]
[1728005299986,4.20134,2380.2,2379.6,0.50790492]
[1728005300187,4.20123,2380.3,2379.6,0.50790492]
[1728005300430,4.2005,2380.7,2379.6,0.50790492]
[1728005300431,4.20053,2380.7,2379.7,0.08403787]
[1728005300588,0.8168,2380.8,2380.3,4.62443]
[1728005301011,4.20028,2380.8,2380.3,0.4233]
[1728005301223,8.40049,2380.9,2380.3,4.62433]
[1728005301437,4.20073,2380.6,2380.3,0.4233]
[1728005301801,4.2008,2380.5,2380.0,0.4233]
[1728005302126,4.19974,2381.1,2380.3,4.62441]
[1728005302304,4.19945,2381.3,2380.7,0.4233]
[1728005302505,4.19945,2381.3,2380.8,0.7926]
[1728005302709,4.19943,2381.3,2380.8,1.2159]
[1728005303250,4.19943,2381.3,2380.7,4.20029]
[1728005303251,4.2004,2380.8,2380.1,4.6247]
[1728005303539,4.20032,2380.8,2380.1,0.4233]
[1728005303737,5.0164,2381.2,2380.1,0.4233]
[1728005303738,4.19984,2381.1,2380.1,0.4233]
[1728005303893,4.20021,2380.9,2380.0,0.4233]
[1728005304094,8.40117,2380.7,2380.0,4.62485]
[1728005304332,4.20056,2380.7,2380.0,4.62485]
[1728005304534,4.20056,2380.7,2380.1,4.20147]
[1728005304718,4.20082,2380.5,2380.2,0.4233]
[1728005304917,4.20056,2380.7,2380.2,0.4233]
[1728005305296,4.20056,2380.7,2380.2,4.6246]
[1728005305500,4.20016,2380.9,2380.2,5.51561716]
[1728005305845,0.8168,2381.2,2380.2,1.31431716]
[1728005306138,0.8168,2381.2,2380.1,0.0840152]
[1728005306139,4.19984,2381.1,2380.6,0.4233]
[1728005306292,4.19778,2382.3,2380.9,0.4233]
[1728005306293,4.19911,2381.5,2380.9,0.4233]
[1728005306598,4.19942,2381.3,2380.9,0.4233]
[1728005307084,4.19922,2381.4,2380.9,0.4233]
[1728005307294,4.19922,2381.4,2380.7,0.7926]
[1728005307295,4.2001,2380.9,2380.7,0.7926]
[1728005307499,4.19977,2381.1,2380.7,0.4233]
[1728005308186,4.19977,2381.1,2380.5,4.20079]
[1728005308350,4.19977,2381.1,2380.6,4.62388]
[1728005308696,4.19783,2382.2,2381.1,0.4233]
[1728005308862,0.8168,2382.3,2381.7,4.62187]
[1728005309049,0.8168,2382.7,2381.9,0.7926]
[1728005309247,4.19685,2382.8,2382.1,4.19782]
[1728005309448,4.19685,2382.8,2382.2,0.08394674]
[1728005309686,4.19711,2382.6,2382.0,4.62141]
[1728005309890,0.8168,2383.0,2382.0,0.4233]
[1728005309891,4.19745,2382.4,2382.0,0.4233]
[1728005310118,0.8168,2382.5,2381.1,0.7926]
[1728005310400,0.8168,2382.5,2381.2,0.4233]
[1728005310401,4.19879,2381.7,2381.2,0.4233]
[1728005310559,4.19802,2382.1,2381.2,0.4233]
[1728005310763,4.19878,2381.7,2381.1,0.7926]
[1728005310953,4.19835,2381.9,2381.3,4.19935]
[1728005311148,0.8168,2382.5,2381.4,0.50390471]
[1728005311352,0.8168,2382.5,2380.6,3.0]
[1728005311353,4.19757,2382.4,2381.8,0.4233]
[1728005311773,4.19712,2382.6,2381.8,0.4233]
[1728005311774,8.39434,2382.6,2381.9,4.1983]
[1728005311973,4.19747,2382.4,2381.8,0.4233]
[1728005312186,4.19832,2381.9,2381.5,0.7926]
[1728005312390,4.19815,2382.0,2381.5,1.2159]
[1728005312591,4.19815,2382.0,2381.6,0.07559251]
[1728005312899,4.19815,2382.0,2381.5,1.2159]
[1728005313057,4.19788,2382.2,2381.5,1.2159]
[1728005313258,4.19809,2382.1,2381.6,0.08396854]
[1728005313462,4.19818,2382.0,2381.5,1.2159]
[1728005313683,4.1987,2381.7,2381.1,0.08396863]
[1728005314005,4.19863,2381.8,2381.1,4.19963]
[1728005314301,0.8128,2381.9,2380.2,0.40174814]
[1728005314302,0.8128,2381.9,2380.3,4.201]
[1728005314530,4.2002,2380.9,2380.2,5.01009]
[1728005314800,4.1999,2381.1,2380.4,4.62412]
[1728005314975,4.20006,2381.0,2380.3,0.501009]
[1728005315156,4.20006,2381.0,2380.4,4.20097]
[1728005315363,4.19965,2381.2,2380.5,0.4701979]
[1728005315564,4.19965,2381.2,2380.7,0.8088]
[1728005315800,4.19925,2381.4,2380.8,4.62355]
[1728005316110,4.1989,2381.6,2381.0,0.4233]
[1728005316803,4.19931,2381.4,2381.0,0.4233]
[1728005316965,4.19907,2381.5,2381.1,0.4233]
[1728005317296,4.19894,2381.6,2381.1,0.4233]
[1728005317297,4.19924,2381.4,2381.1,0.4233]
[1728005317687,4.19956,2381.2,2380.8,0.50728983]
[1728005317909,4.20045,2380.7,2380.3,0.501009]
[1728005318216,4.201,2380.4,2380.2,0.8088]
[1728005318432,4.201,2380.4,2379.7,4.60432427]
[1728005318433,4.20115,2380.3,2379.8,0.8088]
[1728005318579,4.20135,2380.2,2379.9,0.501099]
[1728005318778,4.20169,2380.0,2379.8,1.2321]
[1728005318974,4.20169,2380.0,2379.4,4.2027]
[1728005318975,4.20169,2380.0,2379.5,1.2321]
[1728005319179,4.20101,2380.4,2379.0,0.8088]
[1728005319440,4.20295,2379.3,2379.0,0.8088]
[1728005319719,4.20242,2379.6,2379.1,0.4233]
[1728005319927,4.20242,2379.6,2379.0,0.8088]
[1728005320148,4.20242,2379.6,2379.0,0.89285719]
[1728005320585,4.20211,2379.8,2379.0,5.09628719]
[1728005320779,4.20232,2379.7,2379.1,1.01697647]
[1728005320986,4.20211,2379.8,2379.1,1.01697647]
[1728005321179,0.05,2381.6,2379.1,1.01697647]
[1728005321180,4.20039,2380.8,2379.9,4.20176]
[1728005321407,4.19959,2381.2,2380.4,4.20086]
[1728005321594,4.19959,2381.2,2380.5,0.92739306]
[1728005321796,4.19893,2381.6,2380.7,0.8088]
[1728005322002,0.8128,2382.0,2380.7,0.8088]
[1728005322003,4.19859,2381.8,2380.7,0.89279038]
[1728005322295,4.19891,2381.6,2380.7,0.8088]
[1728005322624,4.24667,2382.9,2379.9,0.8088]
[1728005322625,4.20078,2380.6,2379.9,0.8088]
[1728005322917,4.20083,2380.5,2379.9,0.8088]
[1728005323487,4.20016,2380.9,2380.0,0.08402938]
[1728005323685,4.20016,2380.9,2379.2,0.85313343]
[1728005323686,4.19861,2381.8,2380.4,0.4233]
[1728005323907,3.0,2382.1,2379.4,0.85313343]
[1728005323908,4.1984,2381.9,2380.2,3.08400563]
[1728005324109,4.19904,2381.5,2380.8,4.20013]
[1728005324282,4.19904,2381.5,2380.7,3.08398774]
[1728005324494,4.19921,2381.4,2380.7,3.08398774]
[1728005324795,4.19781,2382.2,2381.1,0.4233]
[1728005325028,4.19875,2381.7,2381.1,0.4233]
[1728005325258,4.19889,2381.6,2381.1,0.4233]
[1728005325460,4.19908,2381.5,2381.1,0.4233]
[1728005325652,4.1994,2381.3,2381.1,0.4233]
[1728005325968,4.19874,2381.7,2381.1,0.4233]
[1728005326261,0.8128,2381.9,2381.1,0.4233]
[1728005326474,4.19956,2381.2,2380.7,0.4233]
[1728005326624,0.8128,2381.2,2380.7,0.4233]
[1728005326957,4.20006,2381.0,2380.8,0.4233]
[1728005327269,4.19868,2381.7,2380.9,0.8088]
[1728005327571,0.8128,2381.9,2381.1,4.62301]
[1728005327855,4.19827,2382.0,2381.2,4.62278]
[1728005328422,4.19827,2382.0,2380.4,0.85313343]
[1728005328423,4.19866,2381.8,2380.8,0.8088]
[1728005328663,0.24736539,2382.7,2380.2,0.7849]
[1728005328664,0.8128,2381.7,2380.2,0.7849]
[1728005328928,4.19802,2382.1,2380.3,0.4233]
[1728005328929,0.8182,2381.0,2380.3,0.4233]
[1728005329145,4.20027,2380.8,2380.3,0.4233]
[1728005329460,0.8182,2381.0,2380.0,0.4233]
[1728005329771,0.8182,2381.0,2379.9,4.98663]
[1728005329772,4.20043,2380.8,2379.9,4.98663]
[1728005329923,4.20092,2380.5,2380.0,0.921963]
[1728005330129,4.20073,2380.6,2380.0,0.4233]
[1728005330660,4.20101,2380.4,2380.0,0.4233]
[1728005330867,4.20066,2380.6,2380.0,0.4233]
[1728005331196,8.40143,2380.6,2380.0,0.4233]
[1728005331377,4.20066,2380.6,2380.0,0.4233]
[1728005331662,4.20033,2380.8,2380.0,1.04833862]
[1728005331876,5.0182,2381.0,2380.3,0.4233]
[1728005332167,5.0182,2381.0,2380.3,4.62433]
[1728005332168,4.2,2381.0,2380.3,4.62433]
[1728005332367,4.2,2381.0,2380.3,5.51530847]
[1728005332574,4.20013,2380.9,2380.3,5.51530847]
[1728005332861,0.8182,2381.3,2380.3,0.4233]
[1728005332862,4.20047,2380.7,2380.3,0.4233]
[1728005333064,4.20083,2380.5,2380.3,0.4233]
[1728005333372,4.19991,2381.0,2380.3,4.20099]
[1728005333373,4.19993,2381.0,2380.3,4.20099]
[1728005333539,4.19988,2381.1,2380.4,0.420099]
[1728005333740,0.8182,2381.3,2380.0,0.4233]
[1728005333933,4.2011,2380.4,2380.0,0.4233]
[1728005334558,4.20123,2380.3,2380.0,0.4233]
[1728005334727,4.20133,2380.2,2380.1,0.4233]
[1728005334929,4.20088,2380.5,2379.7,4.62537]
[1728005335266,4.2011,2380.4,2379.8,4.743027]
[1728005335429,4.20117,2380.3,2379.8,0.541027]
[1728005335973,4.20117,2380.3,2379.7,0.4233]
[1728005336132,4.20157,2380.1,2379.7,0.4233]
[1728005336333,4.19984,2381.1,2379.9,4.2082]
[1728005336574,0.419802,2382.0,2379.9,4.2082]
[1728005336575,4.19914,2381.5,2380.9,0.4233]
[1728005337080,5.01696,2381.7,2381.0,4.62309]
[1728005337368,5.01696,2381.7,2381.1,0.7849]
[1728005337369,4.19876,2381.7,2381.1,0.7849]
[1728005337573,4.19914,2381.5,2381.1,0.7849]
[1728005338079,4.19876,2381.7,2381.2,0.4233]
[1728005338296,4.19876,2381.7,2381.1,0.7849]